[Event "Early Titled Tuesday Blitz | February 8 2022"]
[White "Shuvalova, Polina"]
[Black "Lashkin, Jegor"]
[WhiteFideId "24171760"]
[BlackFideId "13907808"]
[WhiteElo "2355"]
[BlackElo "2344"]
[Result "0-1"]
[Round "04"]
[TimeControl "180+1"]
[Date "2022.02.08"]
[WhiteClock "0:00:03"]
[BlackClock "0:00:01"]

1. e4 {[%clk 0:02:57]}  c5 {[%clk 0:03:00]} 2. Nf3 {[%clk 0:02:52]}  d6 {[%clk 0:03:00]} 3. Bb5+ {[%clk 0:02:50]}  Bd7 {[%clk 0:02:57]} 4. Bxd7+ {[%clk 0:02:50]}  Nxd7 {[%clk 0:02:57]} 5. O-O {[%clk 0:02:50]}  Ngf6 {[%clk 0:02:54]} 6. Qe2 {[%clk 0:02:50]}  Rc8 {[%clk 0:02:52]} 7. c3 {[%clk 0:02:50]}  e6 {[%clk 0:02:43]} 8. d4 {[%clk 0:02:50]}  cxd4 {[%clk 0:02:30]} 9. cxd4 {[%clk 0:02:51]}  d5 {[%clk 0:02:30]} 10. e5 {[%clk 0:02:50]}  Ne4 {[%clk 0:02:30]} 11. Be3 {[%clk 0:02:50]}  Be7 {[%clk 0:02:26]} 12. Ne1 {[%clk 0:02:50]}  h6 {[%clk 0:02:19]} 13. f3 {[%clk 0:02:50]}  Ng5 {[%clk 0:02:19]} 14. Nd3 {[%clk 0:02:50]}  O-O {[%clk 0:02:19]} 15. Nd2 {[%clk 0:02:48]}  Qb6 {[%clk 0:02:15]} 16. f4 {[%clk 0:02:36]}  Ne4 {[%clk 0:01:54]} 17. Nxe4 {[%clk 0:02:31]}  dxe4 {[%clk 0:01:55]} 18. Nf2 {[%clk 0:02:31]}  Qc6 {[%clk 0:01:55]} 19. Rac1 {[%clk 0:02:09]}  Qd5 {[%clk 0:01:54]} 20. b3 {[%clk 0:02:09]}  Ba3 {[%clk 0:01:50]} 21. Rc2 {[%clk 0:02:07]}  b5 {[%clk 0:01:25]} 22. Rd1 {[%clk 0:02:04]}  f5 {[%clk 0:01:18]} 23. exf6 {[%clk 0:01:55]}  Nxf6 {[%clk 0:01:18]} 24. h3 {[%clk 0:01:50]}  a6 {[%clk 0:01:15]} 25. Rdd2 {[%clk 0:01:49]}  Bd6 {[%clk 0:01:02]} 26. Rxc8 {[%clk 0:01:43]}  Rxc8 {[%clk 0:01:03]} 27. Rc2 {[%clk 0:01:43]}  Rc6 {[%clk 0:01:02]} 28. g4 {[%clk 0:01:40]}  a5 {[%clk 0:00:50]} 29. Qd2 {[%clk 0:01:38]}  Bb4 {[%clk 0:00:48]} 30. Qc1 {[%clk 0:01:37]}  Rxc2 {[%clk 0:00:44]} 31. Qxc2 {[%clk 0:01:38]}  Qd7 {[%clk 0:00:34]} 32. Nxe4 {[%clk 0:01:21]}  Nd5 {[%clk 0:00:34]} 33. Kf2 {[%clk 0:01:05]}  a4 {[%clk 0:00:33]} 34. Kf3 {[%clk 0:01:02]}  a3 {[%clk 0:00:29]} 35. Bd2 {[%clk 0:00:54]}  Be7 {[%clk 0:00:28]} 36. Ng3 {[%clk 0:00:46]}  Bb4 {[%clk 0:00:22]} 37. Ne4 {[%clk 0:00:35]}  Be7 {[%clk 0:00:22]} 38. Nf2 {[%clk 0:00:33]}  Bb4 {[%clk 0:00:21]} 39. Nd3 {[%clk 0:00:32]}  Bxd2 {[%clk 0:00:19]} 40. Qxd2 {[%clk 0:00:33]}  Qc6 {[%clk 0:00:19]} 41. Ne5 {[%clk 0:00:30]}  Qc3+ {[%clk 0:00:18]} 42. Qd3 {[%clk 0:00:17]}  Qc1 {[%clk 0:00:18]} 43. f5 {[%clk 0:00:08]}  Qf4+ {[%clk 0:00:17]} 44. Ke2 {[%clk 0:00:08]}  Qh2+ {[%clk 0:00:15]} 45. Ke1 {[%clk 0:00:08]}  Qxa2 {[%clk 0:00:09]} 46. fxe6 {[%clk 0:00:06]}  Qa1+ {[%clk 0:00:08]} 47. Kf2 {[%clk 0:00:05]}  Qb2+ {[%clk 0:00:08]} 48. Kg3 {[%clk 0:00:05]}  a2 {[%clk 0:00:05]} 49. e7 {[%clk 0:00:03]}  Nxe7 {[%clk 0:00:04]} 50. Qxb5 {[%clk 0:00:03]}  Qc3+ {[%clk 0:00:03]} 51. Kh4 {[%clk 0:00:03]}  a1=Q {[%clk 0:00:02]} 52. Qe8+ {[%clk 0:00:03]}  Kh7 {[%clk 0:00:02]} 53. Qxe7 {[%clk 0:00:04]}  Qae1+ {[%clk 0:00:01]} 54. Kh5 {[%clk 0:00:04]}  Qxh3+ {[%clk 0:00:01]} 55. Qh4 {[%clk 0:00:03]}  Qhxh4# {[%clk 0:00:01]} 0-1


[Site "https://www.chess.com"]

[Event "Early Titled Tuesday Blitz | February 8 2022"]
[White "Shyaamnikhil P"]
[Black "Krzywda, Andrzej"]
[WhiteFideId "5024218"]
[BlackFideId "1114565"]
[WhiteElo "2292"]
[BlackElo "2098"]
[Result "1/2-1/2"]
[Round "04"]
[TimeControl "180+1"]
[Date "2022.02.08"]
[WhiteClock "0:01:00"]
[BlackClock "0:00:42"]

1. d4 {[%clk 0:03:00]}  d5 {[%clk 0:03:00]} 2. Nf3 {[%clk 0:03:00]}  Nf6 {[%clk 0:02:59]} 3. e3 {[%clk 0:03:00]}  e6 {[%clk 0:02:59]} 4. Bd3 {[%clk 0:03:00]}  Bd6 {[%clk 0:02:58]} 5. O-O {[%clk 0:02:59]}  O-O {[%clk 0:02:58]} 6. Ne5 {[%clk 0:02:59]}  c5 {[%clk 0:02:56]} 7. f4 {[%clk 0:02:56]}  Qc7 {[%clk 0:02:56]} 8. c3 {[%clk 0:02:53]}  Nbd7 {[%clk 0:02:56]} 9. Nd2 {[%clk 0:02:53]}  b6 {[%clk 0:02:56]} 10. Ndf3 {[%clk 0:02:48]}  Bb7 {[%clk 0:02:56]} 11. Bd2 {[%clk 0:02:48]}  Ne4 {[%clk 0:02:55]} 12. Be1 {[%clk 0:02:42]}  f5 {[%clk 0:02:51]} 13. Nxd7 {[%clk 0:02:34]}  Qxd7 {[%clk 0:02:49]} 14. Ne5 {[%clk 0:02:32]}  Bxe5 {[%clk 0:02:48]} 15. fxe5 {[%clk 0:02:32]}  Kh8 {[%clk 0:02:23]} 16. a4 {[%clk 0:02:27]}  a5 {[%clk 0:02:10]} 17. Qe2 {[%clk 0:02:25]}  Qe7 {[%clk 0:02:03]} 18. Bg3 {[%clk 0:02:12]}  Qg5 {[%clk 0:02:00]} 19. Bxe4 {[%clk 0:02:06]}  fxe4 {[%clk 0:01:50]} 20. Rxf8+ {[%clk 0:02:05]}  Rxf8 {[%clk 0:01:51]} 21. Rf1 {[%clk 0:02:04]}  Rxf1+ {[%clk 0:01:35]} 22. Kxf1 {[%clk 0:02:04]}  Qf5+ {[%clk 0:01:33]} 23. Ke1 {[%clk 0:01:50]}  c4 {[%clk 0:01:32]} 24. b3 {[%clk 0:01:19]}  Ba6 {[%clk 0:01:27]} 25. bxc4 {[%clk 0:01:18]}  Bxc4 {[%clk 0:01:26]} 26. Qf2 {[%clk 0:01:18]}  Kg8 {[%clk 0:01:17]} 27. Qxf5 {[%clk 0:01:16]}  exf5 {[%clk 0:01:18]} 28. Bh4 {[%clk 0:01:17]}  b5 {[%clk 0:01:16]} 29. axb5 {[%clk 0:01:16]}  Bxb5 {[%clk 0:01:17]} 30. Be7 {[%clk 0:01:15]}  Kf7 {[%clk 0:01:16]} 31. Ba3 {[%clk 0:01:14]}  g5 {[%clk 0:01:12]} 32. g3 {[%clk 0:01:14]}  Ke6 {[%clk 0:01:11]} 33. Kd2 {[%clk 0:01:13]}  Bc4 {[%clk 0:01:11]} 34. Bf8 {[%clk 0:01:11]}  a4 {[%clk 0:01:07]} 35. Bh6 {[%clk 0:01:08]}  a3 {[%clk 0:01:03]} 36. Kc2 {[%clk 0:01:08]}  a2 {[%clk 0:01:02]} 37. Kb2 {[%clk 0:01:08]}  f4 {[%clk 0:01:01]} 38. gxf4 {[%clk 0:01:07]}  g4 {[%clk 0:01:00]} 39. Bg5 {[%clk 0:01:04]}  Kf5 {[%clk 0:01:00]} 40. Bh4 {[%clk 0:01:04]}  h5 {[%clk 0:00:59]} 41. Bd8 {[%clk 0:01:02]}  Ke6 {[%clk 0:00:49]} 42. Bh4 {[%clk 0:01:01]}  Kf5 {[%clk 0:00:49]} 43. Bd8 {[%clk 0:01:00]}  Ke6 {[%clk 0:00:42]} 44. Bh4 {[%clk 0:01:00]}  Kf5 {[%clk 0:00:42]} 1/2-1/2


[Site "https://www.chess.com"]

[Event "Early Titled Tuesday Blitz | February 8 2022"]
[White "Silich, Yahor"]
[Black "Kalogridis, Antonios"]
[WhiteFideId "13513656"]
[BlackFideId "25833901"]
[WhiteElo "2101"]
[BlackElo "1495"]
[Result "0-1"]
[Round "04"]
[TimeControl "180+1"]
[Date "2022.02.08"]
[WhiteClock "0:00:03"]
[BlackClock "0:00:46"]

1. e4 {[%clk 0:02:59]}  c6 {[%clk 0:03:00]} 2. Nf3 {[%clk 0:02:57]}  d5 {[%clk 0:03:00]} 3. d3 {[%clk 0:02:58]}  e6 {[%clk 0:02:55]} 4. e5 {[%clk 0:02:56]}  c5 {[%clk 0:02:54]} 5. c3 {[%clk 0:02:55]}  Nc6 {[%clk 0:02:54]} 6. d4 {[%clk 0:02:55]}  Qb6 {[%clk 0:02:54]} 7. a3 {[%clk 0:02:53]}  c4 {[%clk 0:02:49]} 8. Nbd2 {[%clk 0:02:45]}  Na5 {[%clk 0:02:48]} 9. h4 {[%clk 0:02:44]}  Bd7 {[%clk 0:02:48]} 10. h5 {[%clk 0:02:44]}  h6 {[%clk 0:02:47]} 11. g3 {[%clk 0:02:44]}  f5 {[%clk 0:02:46]} 12. Bh3 {[%clk 0:02:38]}  O-O-O {[%clk 0:02:44]} 13. Nh4 {[%clk 0:02:36]}  Ne7 {[%clk 0:02:40]} 14. O-O {[%clk 0:02:36]}  Be8 {[%clk 0:02:39]} 15. Re1 {[%clk 0:02:29]}  g5 {[%clk 0:02:38]} 16. hxg6 {[%clk 0:02:29]}  Nxg6 {[%clk 0:02:38]} 17. Nxg6 {[%clk 0:02:26]}  Bxg6 {[%clk 0:02:39]} 18. Nf3 {[%clk 0:02:21]}  Be7 {[%clk 0:02:38]} 19. Bf4 {[%clk 0:02:15]}  Nb3 {[%clk 0:02:35]} 20. Rb1 {[%clk 0:02:15]}  Bg5 {[%clk 0:02:31]} 21. Bxg5 {[%clk 0:02:06]}  hxg5 {[%clk 0:02:30]} 22. Nxg5 {[%clk 0:02:07]}  Rh5 {[%clk 0:02:23]} 23. f4 {[%clk 0:02:07]}  Rdh8 {[%clk 0:02:22]} 24. Kg2 {[%clk 0:02:03]}  Kd7 {[%clk 0:02:01]} 25. Rh1 {[%clk 0:02:02]}  Qd8 {[%clk 0:01:57]} 26. Qe2 {[%clk 0:01:54]}  Rxg5 {[%clk 0:01:48]} 27. fxg5 {[%clk 0:01:53]}  Qxg5 {[%clk 0:01:49]} 28. Qf2 {[%clk 0:01:45]}  Nd2 {[%clk 0:01:42]} 29. Qf4 {[%clk 0:01:27]}  Qxf4 {[%clk 0:01:38]} 30. gxf4 {[%clk 0:01:28]}  Nxb1 {[%clk 0:01:38]} 31. Rxb1 {[%clk 0:01:29]}  Bh5 {[%clk 0:01:36]} 32. Kf2 {[%clk 0:01:16]}  Rg8 {[%clk 0:01:33]} 33. Rh1 {[%clk 0:00:54]}  Bf7 {[%clk 0:01:30]} 34. Bg2 {[%clk 0:00:53]}  Ke7 {[%clk 0:01:26]} 35. Bf3 {[%clk 0:00:48]}  Kf8 {[%clk 0:01:25]} 36. b3 {[%clk 0:00:46]}  cxb3 {[%clk 0:01:22]} 37. Rb1 {[%clk 0:00:45]}  Ke7 {[%clk 0:01:19]} 38. Rxb3 {[%clk 0:00:45]}  b6 {[%clk 0:01:20]} 39. a4 {[%clk 0:00:41]}  Rc8 {[%clk 0:01:16]} 40. Be2 {[%clk 0:00:40]}  Be8 {[%clk 0:01:11]} 41. Ra3 {[%clk 0:00:30]}  a5 {[%clk 0:01:08]} 42. Ke3 {[%clk 0:00:30]}  Bd7 {[%clk 0:01:07]} 43. Kd2 {[%clk 0:00:28]}  Kd8 {[%clk 0:01:07]} 44. Ra1 {[%clk 0:00:28]}  Kc7 {[%clk 0:01:06]} 45. c4 {[%clk 0:00:17]}  dxc4 {[%clk 0:01:01]} 46. Bxc4 {[%clk 0:00:18]}  Kd8 {[%clk 0:01:01]} 47. Bd3 {[%clk 0:00:17]}  Ke7 {[%clk 0:00:59]} 48. Rb1 {[%clk 0:00:17]}  Bxa4 {[%clk 0:00:57]} 49. Rxb6 {[%clk 0:00:16]}  Bd7 {[%clk 0:00:58]} 50. Ra6 {[%clk 0:00:16]}  a4 {[%clk 0:00:57]} 51. Ra7 {[%clk 0:00:16]}  Kd8 {[%clk 0:00:57]} 52. Bc2 {[%clk 0:00:11]}  Rc4 {[%clk 0:00:55]} 53. Kd3 {[%clk 0:00:08]}  Bb5 {[%clk 0:00:55]} 54. Rb7 {[%clk 0:00:03]}  Ba6 {[%clk 0:00:47]} 55. Rb8+ {[%clk 0:00:03]}  Rc8+ {[%clk 0:00:46]} 0-1


[Site "https://www.chess.com"]

[Event "Early Titled Tuesday Blitz | February 8 2022"]
[White "Stankovic, Ivan G"]
[Black "Cherniaiev, Tykhon"]
[WhiteFideId "902837"]
[BlackFideId "14182360"]
[WhiteElo "2195"]
[BlackElo "2289"]
[Result "1/2-1/2"]
[Round "04"]
[TimeControl "180+1"]
[Date "2022.02.08"]
[WhiteClock "0:01:07"]
[BlackClock "0:01:07"]

1. e4 {[%clk 0:03:00]}  c5 {[%clk 0:02:59]} 2. c4 {[%clk 0:03:00]}  Nc6 {[%clk 0:02:59]} 3. Nc3 {[%clk 0:02:59]}  Nf6 {[%clk 0:02:58]} 4. g3 {[%clk 0:02:58]}  e6 {[%clk 0:02:58]} 5. Bg2 {[%clk 0:02:58]}  d5 {[%clk 0:02:55]} 6. d3 {[%clk 0:02:57]}  dxc4 {[%clk 0:02:54]} 7. dxc4 {[%clk 0:02:57]}  Qxd1+ {[%clk 0:02:51]} 8. Nxd1 {[%clk 0:02:57]}  Nd4 {[%clk 0:02:51]} 9. Ne3 {[%clk 0:02:57]}  e5 {[%clk 0:02:51]} 10. Ne2 {[%clk 0:02:55]}  Be6 {[%clk 0:02:51]} 11. b3 {[%clk 0:02:54]}  O-O-O {[%clk 0:02:49]} 12. Bb2 {[%clk 0:02:53]}  Be7 {[%clk 0:02:49]} 13. Bxd4 {[%clk 0:02:51]}  cxd4 {[%clk 0:02:49]} 14. Nd5 {[%clk 0:02:52]}  Bxd5 {[%clk 0:02:48]} 15. cxd5 {[%clk 0:02:46]}  Kb8 {[%clk 0:02:47]} 16. Kd2 {[%clk 0:02:38]}  Bb4+ {[%clk 0:02:44]} 17. Kd3 {[%clk 0:02:38]}  Rc8 {[%clk 0:02:41]} 18. Bh3 {[%clk 0:02:33]}  Rc7 {[%clk 0:02:33]} 19. Rac1 {[%clk 0:02:24]}  Ne8 {[%clk 0:01:46]} 20. f4 {[%clk 0:02:15]}  f6 {[%clk 0:01:44]} 21. Rhf1 {[%clk 0:02:13]}  Rf8 {[%clk 0:01:40]} 22. Rxc7 {[%clk 0:02:10]}  Nxc7 {[%clk 0:01:39]} 23. fxe5 {[%clk 0:02:10]}  fxe5 {[%clk 0:01:39]} 24. Rxf8+ {[%clk 0:02:09]}  Bxf8 {[%clk 0:01:39]} 25. Ng1 {[%clk 0:02:02]}  Be7 {[%clk 0:01:16]} 26. Nf3 {[%clk 0:02:01]}  Bf6 {[%clk 0:01:16]} 27. Nd2 {[%clk 0:01:38]}  Ne8 {[%clk 0:01:11]} 28. Bf5 {[%clk 0:01:22]}  h6 {[%clk 0:01:08]} 29. a4 {[%clk 0:01:14]}  Nd6 {[%clk 0:01:08]} 30. Nc4 {[%clk 0:01:12]}  Kc7 {[%clk 0:01:07]} 31. Nxd6 {[%clk 0:01:11]}  Kxd6 {[%clk 0:01:07]} 32. h4 {[%clk 0:01:07]} 1/2-1/2


[Site "https://www.chess.com"]

[Event "Early Titled Tuesday Blitz | February 8 2022"]
[White "Sychev, Klementy"]
[Black "Gabdrakhmanov, Azat"]
[WhiteFideId "4114060"]
[BlackFideId "34189197"]
[WhiteElo "2564"]
[BlackElo "2279"]
[Result "1-0"]
[Round "04"]
[TimeControl "180+1"]
[Date "2022.02.08"]
[WhiteClock "0:00:49"]
[BlackClock "0:00:06"]

1. d4 {[%clk 0:02:58]}  Nf6 {[%clk 0:03:00]} 2. c4 {[%clk 0:02:58]}  g6 {[%clk 0:03:00]} 3. g3 {[%clk 0:02:56]}  Bg7 {[%clk 0:03:00]} 4. Bg2 {[%clk 0:02:57]}  O-O {[%clk 0:03:01]} 5. Nc3 {[%clk 0:02:56]}  d6 {[%clk 0:03:02]} 6. Nf3 {[%clk 0:02:56]}  c5 {[%clk 0:03:03]} 7. d5 {[%clk 0:02:51]}  Na6 {[%clk 0:03:01]} 8. O-O {[%clk 0:02:48]}  Nc7 {[%clk 0:03:01]} 9. e4 {[%clk 0:02:48]}  Rb8 {[%clk 0:02:55]} 10. a4 {[%clk 0:02:47]}  a6 {[%clk 0:02:55]} 11. e5 {[%clk 0:02:42]}  Nfe8 {[%clk 0:02:52]} 12. a5 {[%clk 0:02:33]}  Bg4 {[%clk 0:02:45]} 13. exd6 {[%clk 0:02:15]}  Nxd6 {[%clk 0:02:38]} 14. Qe2 {[%clk 0:02:13]}  b5 {[%clk 0:02:29]} 15. axb6 {[%clk 0:02:11]}  Rxb6 {[%clk 0:02:29]} 16. Be3 {[%clk 0:02:11]}  Bd4 {[%clk 0:01:41]} 17. Bxd4 {[%clk 0:02:05]}  cxd4 {[%clk 0:01:41]} 18. c5 {[%clk 0:02:06]}  dxc3 {[%clk 0:01:25]} 19. cxb6 {[%clk 0:02:06]}  Nxd5 {[%clk 0:01:25]} 20. bxc3 {[%clk 0:02:02]}  Qxb6 {[%clk 0:01:08]} 21. c4 {[%clk 0:02:01]}  Nb4 {[%clk 0:00:48]} 22. Qxe7 {[%clk 0:01:58]}  Re8 {[%clk 0:00:36]} 23. Qh4 {[%clk 0:01:56]}  h5 {[%clk 0:00:24]} 24. Qf6 {[%clk 0:01:49]}  Nxc4 {[%clk 0:00:22]} 25. Qc3 {[%clk 0:01:23]}  Bxf3 {[%clk 0:00:22]} 26. Bxf3 {[%clk 0:01:21]}  Ne5 {[%clk 0:00:22]} 27. Bg2 {[%clk 0:01:13]}  Ned3 {[%clk 0:00:19]} 28. Rad1 {[%clk 0:01:10]}  Qb5 {[%clk 0:00:17]} 29. Bc6 {[%clk 0:01:05]}  Nxc6 {[%clk 0:00:13]} 30. Qxd3 {[%clk 0:01:04]}  Qg5 {[%clk 0:00:10]} 31. Qd7 {[%clk 0:01:02]}  Re6 {[%clk 0:00:10]} 32. Qc8+ {[%clk 0:01:01]}  Kg7 {[%clk 0:00:11]} 33. Qxa6 {[%clk 0:01:01]}  Ne5 {[%clk 0:00:11]} 34. Qa1 {[%clk 0:00:58]}  Kh7 {[%clk 0:00:10]} 35. f4 {[%clk 0:00:58]}  Qg4 {[%clk 0:00:06]} 36. fxe5 {[%clk 0:00:58]}  h4 {[%clk 0:00:07]} 37. Rxf7+ {[%clk 0:00:56]}  Kh6 {[%clk 0:00:06]} 38. Rd4 {[%clk 0:00:51]}  Qe2 {[%clk 0:00:06]} 39. Rxh4+ {[%clk 0:00:48]}  Kg5 {[%clk 0:00:06]} 40. Qc1+ {[%clk 0:00:49]} 1-0


[Site "https://www.chess.com"]

[Event "Early Titled Tuesday Blitz | February 8 2022"]
[White "Van Foreest, Jorden"]
[Black "Goryachkina, Aleksandra"]
[WhiteFideId "1039784"]
[BlackFideId "4147103"]
[WhiteElo "2609"]
[BlackElo "2426"]
[Result "1-0"]
[Round "04"]
[TimeControl "180+1"]
[Date "2022.02.08"]
[WhiteClock "0:01:53"]
[BlackClock "0:00:07"]

1. e4 {[%clk 0:02:59]}  e6 {[%clk 0:02:59]} 2. d4 {[%clk 0:02:59]}  d5 {[%clk 0:03:00]} 3. Nd2 {[%clk 0:02:58]}  c5 {[%clk 0:02:59]} 4. exd5 {[%clk 0:02:56]}  Qxd5 {[%clk 0:02:59]} 5. Ngf3 {[%clk 0:02:55]}  cxd4 {[%clk 0:02:58]} 6. Bc4 {[%clk 0:02:55]}  Qd7 {[%clk 0:02:58]} 7. O-O {[%clk 0:02:54]}  Nc6 {[%clk 0:02:58]} 8. Nb3 {[%clk 0:02:54]}  a6 {[%clk 0:02:57]} 9. Nbxd4 {[%clk 0:02:55]}  Nxd4 {[%clk 0:02:57]} 10. Nxd4 {[%clk 0:02:55]}  Qc7 {[%clk 0:02:57]} 11. Qe2 {[%clk 0:02:54]}  Bd6 {[%clk 0:02:46]} 12. Nf5 {[%clk 0:02:51]}  Bxh2+ {[%clk 0:02:38]} 13. Kh1 {[%clk 0:02:51]}  Be5 {[%clk 0:02:37]} 14. Bg5 {[%clk 0:02:41]}  exf5 {[%clk 0:01:46]} 15. f4 {[%clk 0:02:40]}  f6 {[%clk 0:01:41]} 16. Bh4 {[%clk 0:02:40]}  Ne7 {[%clk 0:01:37]} 17. fxe5 {[%clk 0:02:39]}  fxe5 {[%clk 0:01:31]} 18. Rad1 {[%clk 0:02:38]}  Bd7 {[%clk 0:00:56]} 19. Qh5+ {[%clk 0:02:33]}  g6 {[%clk 0:00:25]} 20. Qg5 {[%clk 0:02:28]}  O-O-O {[%clk 0:00:19]} 21. Qxe7 {[%clk 0:02:13]}  Qxc4 {[%clk 0:00:19]} 22. Rf3 {[%clk 0:02:01]}  Kb8 {[%clk 0:00:10]} 23. Qd6+ {[%clk 0:01:59]}  Ka8 {[%clk 0:00:10]} 24. Bxd8 {[%clk 0:01:59]}  Rxd8 {[%clk 0:00:10]} 25. Qxe5 {[%clk 0:01:55]}  Qh4+ {[%clk 0:00:08]} 26. Rh3 {[%clk 0:01:55]}  Qg4 {[%clk 0:00:07]} 27. Rxd7 {[%clk 0:01:53]} 1-0


[Site "https://www.chess.com"]

[Event "Early Titled Tuesday Blitz | February 8 2022"]
[White "Varney, Zoe"]
[Black "Borisova, Ekaterina"]
[WhiteFideId "436135"]
[BlackFideId "34124184"]
[WhiteElo "1808"]
[BlackElo "2034"]
[Result "0-1"]
[Round "04"]
[TimeControl "180+1"]
[Date "2022.02.08"]
[WhiteClock "0:00:26"]
[BlackClock "0:01:53"]

1. e4 {[%clk 0:03:00]}  c6 {[%clk 0:02:59]} 2. c4 {[%clk 0:02:59]}  d5 {[%clk 0:02:59]} 3. exd5 {[%clk 0:02:59]}  cxd5 {[%clk 0:03:00]} 4. cxd5 {[%clk 0:03:00]}  Nf6 {[%clk 0:03:01]} 5. Nc3 {[%clk 0:03:00]}  g6 {[%clk 0:02:57]} 6. Bc4 {[%clk 0:02:58]}  Bg7 {[%clk 0:02:57]} 7. Nf3 {[%clk 0:02:58]}  O-O {[%clk 0:02:57]} 8. d3 {[%clk 0:02:58]}  Nbd7 {[%clk 0:02:57]} 9. d6 {[%clk 0:02:58]}  exd6 {[%clk 0:02:56]} 10. O-O {[%clk 0:02:57]}  a6 {[%clk 0:02:51]} 11. Re1 {[%clk 0:02:57]}  b5 {[%clk 0:02:48]} 12. Bb3 {[%clk 0:02:49]}  Bb7 {[%clk 0:02:46]} 13. Ne4 {[%clk 0:02:33]}  Nc5 {[%clk 0:02:39]} 14. Bc2 {[%clk 0:02:17]}  Re8 {[%clk 0:02:36]} 15. Bg5 {[%clk 0:01:55]}  Ncxe4 {[%clk 0:02:28]} 16. dxe4 {[%clk 0:01:53]}  h6 {[%clk 0:02:28]} 17. Bxf6 {[%clk 0:01:31]}  Qxf6 {[%clk 0:02:25]} 18. Rb1 {[%clk 0:01:20]}  Rac8 {[%clk 0:02:13]} 19. Qd3 {[%clk 0:01:08]}  Rc4 {[%clk 0:02:04]} 20. Nd2 {[%clk 0:00:27]}  Rc5 {[%clk 0:02:03]} 21. b4 {[%clk 0:00:26]}  Rc3 {[%clk 0:01:53]} 0-1


[Site "https://www.chess.com"]

[Event "Early Titled Tuesday Blitz | February 8 2022"]
[White "Vignesh, N R"]
[Black "Weishaeutel, Moritz"]
[WhiteFideId "25012215"]
[BlackFideId "12967300"]
[WhiteElo "2395"]
[BlackElo "2002"]
[Result "0-1"]
[Round "04"]
[TimeControl "180+1"]
[Date "2022.02.08"]
[WhiteClock "0:00:11"]
[BlackClock "0:00:32"]

1. c4 {[%clk 0:03:00]}  e6 {[%clk 0:03:00]} 2. Nc3 {[%clk 0:03:00]}  d5 {[%clk 0:03:01]} 3. cxd5 {[%clk 0:03:00]}  exd5 {[%clk 0:03:02]} 4. d4 {[%clk 0:03:00]}  Nf6 {[%clk 0:03:01]} 5. Bg5 {[%clk 0:02:59]}  c6 {[%clk 0:03:02]} 6. e3 {[%clk 0:02:59]}  Bd6 {[%clk 0:03:01]} 7. Bd3 {[%clk 0:02:59]}  O-O {[%clk 0:03:02]} 8. Nf3 {[%clk 0:02:58]}  Nbd7 {[%clk 0:02:59]} 9. O-O {[%clk 0:02:54]}  Re8 {[%clk 0:02:59]} 10. Rb1 {[%clk 0:02:53]}  a5 {[%clk 0:02:59]} 11. a3 {[%clk 0:02:53]}  Nf8 {[%clk 0:02:59]} 12. b4 {[%clk 0:02:52]}  axb4 {[%clk 0:03:00]} 13. axb4 {[%clk 0:02:53]}  Ng6 {[%clk 0:03:01]} 14. b5 {[%clk 0:02:49]}  h6 {[%clk 0:03:00]} 15. Bxf6 {[%clk 0:02:43]}  Qxf6 {[%clk 0:03:01]} 16. bxc6 {[%clk 0:02:40]}  bxc6 {[%clk 0:03:02]} 17. h3 {[%clk 0:02:28]}  Ra3 {[%clk 0:02:49]} 18. Rc1 {[%clk 0:02:28]}  Nh4 {[%clk 0:02:26]} 19. Nxh4 {[%clk 0:02:20]}  Qxh4 {[%clk 0:02:27]} 20. Qf3 {[%clk 0:02:19]}  Bb4 {[%clk 0:02:26]} 21. Nxd5 {[%clk 0:01:26]}  cxd5 {[%clk 0:02:27]} 22. Bb5 {[%clk 0:01:27]}  Rd8 {[%clk 0:02:25]} 23. Rc7 {[%clk 0:01:23]}  Be6 {[%clk 0:02:23]} 24. Rfc1 {[%clk 0:01:18]}  Bd6 {[%clk 0:02:11]} 25. Rb7 {[%clk 0:01:11]}  Rda8 {[%clk 0:02:07]} 26. Bc6 {[%clk 0:01:09]}  Rc8 {[%clk 0:02:02]} 27. Rbb1 {[%clk 0:01:07]}  Qd8 {[%clk 0:01:40]} 28. g3 {[%clk 0:00:53]}  Be7 {[%clk 0:01:20]} 29. Kg2 {[%clk 0:00:49]}  Qd6 {[%clk 0:01:13]} 30. Bb7 {[%clk 0:00:45]}  Rxc1 {[%clk 0:01:09]} 31. Rxc1 {[%clk 0:00:46]}  Ra7 {[%clk 0:01:09]} 32. Bc8 {[%clk 0:00:46]}  Rc7 {[%clk 0:01:08]} 33. Bxe6 {[%clk 0:00:42]}  fxe6 {[%clk 0:01:02]} 34. Rxc7 {[%clk 0:00:41]}  Qxc7 {[%clk 0:01:02]} 35. Qg4 {[%clk 0:00:42]}  Qd6 {[%clk 0:00:57]} 36. h4 {[%clk 0:00:38]}  Bf6 {[%clk 0:00:54]} 37. h5 {[%clk 0:00:37]}  Qe7 {[%clk 0:00:41]} 38. Qd1 {[%clk 0:00:36]}  e5 {[%clk 0:00:39]} 39. dxe5 {[%clk 0:00:35]}  Qxe5 {[%clk 0:00:39]} 40. Kg1 {[%clk 0:00:29]}  Qa1 {[%clk 0:00:38]} 41. Qxa1 {[%clk 0:00:28]}  Bxa1 {[%clk 0:00:39]} 42. Kg2 {[%clk 0:00:28]}  Kf7 {[%clk 0:00:39]} 43. g4 {[%clk 0:00:29]}  Kf6 {[%clk 0:00:39]} 44. f4 {[%clk 0:00:29]}  d4 {[%clk 0:00:33]} 45. exd4 {[%clk 0:00:28]}  Bxd4 {[%clk 0:00:34]} 46. Kf3 {[%clk 0:00:29]}  Bb2 {[%clk 0:00:34]} 47. Ke4 {[%clk 0:00:28]}  Bc1 {[%clk 0:00:34]} 48. Kf3 {[%clk 0:00:29]}  Ke6 {[%clk 0:00:33]} 49. Ke4 {[%clk 0:00:26]}  Bd2 {[%clk 0:00:33]} 50. Kf3 {[%clk 0:00:20]}  Kd5 {[%clk 0:00:33]} 51. Kg3 {[%clk 0:00:12]}  Ke4 {[%clk 0:00:32]} 52. f5 {[%clk 0:00:12]}  Bg5 {[%clk 0:00:32]} 53. Kg2 {[%clk 0:00:11]}  Kf4 {[%clk 0:00:32]} 0-1


[Site "https://www.chess.com"]

[Event "Early Titled Tuesday Blitz | February 8 2022"]
[White "Visakh N R"]
[Black "Alinasab, Mobina"]
[WhiteFideId "25012223"]
[BlackFideId "12528897"]
[WhiteElo "2454"]
[BlackElo "2061"]
[Result "1-0"]
[Round "04"]
[TimeControl "180+1"]
[Date "2022.02.08"]
[WhiteClock "0:02:01"]
[BlackClock "0:01:21"]

1. e4 {[%clk 0:03:00]}  c5 {[%clk 0:02:49]} 2. Nf3 {[%clk 0:02:56]}  e6 {[%clk 0:02:47]} 3. c3 {[%clk 0:02:54]}  d5 {[%clk 0:02:46]} 4. exd5 {[%clk 0:02:51]}  exd5 {[%clk 0:02:47]} 5. Bb5+ {[%clk 0:02:50]}  Bd7 {[%clk 0:02:44]} 6. Bxd7+ {[%clk 0:02:50]}  Qxd7 {[%clk 0:02:45]} 7. O-O {[%clk 0:02:49]}  Nc6 {[%clk 0:02:43]} 8. d4 {[%clk 0:02:48]}  cxd4 {[%clk 0:02:39]} 9. Re1+ {[%clk 0:02:46]}  Be7 {[%clk 0:02:32]} 10. cxd4 {[%clk 0:02:36]}  Nf6 {[%clk 0:02:31]} 11. Nc3 {[%clk 0:02:31]}  O-O {[%clk 0:02:11]} 12. Ne5 {[%clk 0:02:30]}  Qd8 {[%clk 0:02:04]} 13. Bf4 {[%clk 0:02:21]}  Bb4 {[%clk 0:02:00]} 14. Bg5 {[%clk 0:02:12]}  Bxc3 {[%clk 0:01:53]} 15. bxc3 {[%clk 0:02:11]}  h6 {[%clk 0:01:52]} 16. Bxf6 {[%clk 0:02:08]}  gxf6 {[%clk 0:01:44]} 17. Qg4+ {[%clk 0:02:04]}  Kh8 {[%clk 0:01:38]} 18. Qh5 {[%clk 0:02:01]}  fxe5 {[%clk 0:01:24]} 19. Qxh6+ {[%clk 0:02:01]}  Kg8 {[%clk 0:01:25]} 20. Re3 {[%clk 0:02:01]}  Ne7 {[%clk 0:01:21]} 21. Rh3 {[%clk 0:02:01]} 1-0


[Site "https://www.chess.com"]